Cogmind - Beta 17 @@@ ROGUE MODE // 2026.08.05 @ 16:03:39 Player: aperiodic Result: Destroyed by S-43 Plague with Heavy Machine Gun Performance ------------- Evolutions (7) 3500 Regions Visited (24) 4800 Robots Destroyed (412) 2060 Value Destroyed (17928) 17928 Prototype IDs (56) 1120 Alien Tech Used (1) 200 Bonus (27846) 27846 TOTAL SCORE: 57454 Bonus ------- High Alert Combat Kills 2527 Follower Combat Kills 2004 Prayed to X0-1V1 5000 Major X0-1V1 Interference 15350 Network Hubs Disabled 200 Met Data Miner 300 Met R17 at Cetus 500 Met R17 at Research 2000 Friendly Fire -35 Cogmind --------- Core Integrity 0/1100 Matter 300/300 Energy 2408/2408 System Corruption 16% Temperature Warm (164) Movement Hovering (85) Location -3/Armory Parts ------- > --- POWER (2) -------- Quantum-Antimatter Reactor > --- PROPULSION (6) --- Hovering Gyrokinetic-Antigrav Exoskeleton > --- UTILITY (10) ----- Armored Scrap Engine Advanced Coolant Injector Medium Storage Unit Spectral Analyzer Experimental Signal Interpreter Experimental Targeting Computer Graphene Brace (fused) X0-1V1's Piety Tracker > --- WEAPON (4) ------- Enhanced Nova Cannon Kinetic Construct/C Shotgun Directed Neutralizer Con/C Lance > --- INVENTORY (10) --- Protomatter-125 Makeshift Trap Scanner Long-range Sensor Array Quantum Capacitor Improved Focal Shield Advanced Point Defense System Authchip [Device] Authchip [Device] Improved Recalibrator Peak State ------------ > --- POWER ------------ Quantum-Antimatter Reactor > --- PROPULSION ------- Hovering Gyrokinetic-Antigrav Exoskeleton > --- UTILITY ---------- Armored Scrap Engine Experimental Power Amplifier Advanced Heat Sink Medium Storage Unit Experimental Targeting Computer Improved Transmission Jammer Graphene Brace Advanced Force Field X0-1V1's Piety Tracker > --- WEAPON ----------- Fusion Bomb Launcher Thermic Nova Construct/C Kinetic Construct/C Hpw. Directed Quantum Construct/G > --- INVENTORY -------- Makeshift Trap Scanner Quantum Capacitor Advanced Reaction Control System Improved Focal Shield Advanced Force Field Advanced Point Defense System Improved Recalibrator Gamma Bomb Array Lance [Rating: 180] Favorites ----------- Power Constructs Engine Cooled Ion Engine Reactor Constructs Propulsion Constructs Treads Armored Treads Wheel Compact Wheel Hover Unit Constructs Flight Unit Diametric Drive Utility Large Storage Unit Device Armored Scrap Engine Storage Large Storage Unit Processor Advanced Targeting Computer Hackware Improved Hacking Suite Protection Light Armor Plating Weapon Constructs Energy Gun Constructs Energy Cannon Constructs Ballistic Gun Improved Assault Rifle Ballistic Cannon Constructs Launcher Precision Grenade Launcher Special Weapon Improved Plasma Cutter Slashing Weapon Heavy Scimitar of Distortion Piercing Weapon Lance Build | -11 -10 -10 -9 -9 -8 -8 -8 -6 -6 -6 -6 -5 -5 -5 -5 -5 -4 -4 -4 -4 -4 -4 -3 -3 ------- Run | Yrd Mat Min Mat Min Mat Sto Rec Fac Low Low Dat Pro Fac Upp Upp War Pro Fac Ext Cet Arc Hub Res Arm Slots Evolved 14 | . . . 2 . 2 . . 4 . . . . 2 . . . . 2 . . . . 2 . Power . | . . . . . . . . . . . . . . . . . . . . . . . . . Propulsion 5 | . . . 1 . . . . 2 . . . . . . . . . . . . . . 2 . Utility 8 | . . . 1 . 2 . . 2 . . . . 2 . . . . 1 . . . . . . Weapon 1 | . . . . . . . . . . . . . . . . . . 1 . . . . . . Parts Attached 145 | 9 14 2 23 4 3 16 3 6 5 . . 1 7 3 1 . . 1 3 4 1 11 12 16 Power 12 | 1 3 . 5 1 . 2 . . . . . . . . . . . . . . . . . . Engine 12 | 1 3 . 5 1 . 2 . . . . . . . . . . . . . . . . . . Core . | . . . . . . . . . . . . . . . . . . . . . . . . . Reactor . | . . . . . . . . . . . . . . . . . . . . . . . . . Propulsion 15 | 3 1 . 5 . 1 1 . . . . . . . . . . . . . . . . 2 2 Treads 7 | 1 1 . 3 . 1 1 . . . . . . . . . . . . . . . . . . Leg . | . . . . . . . . . . . . . . . . . . . . . . . . . Wheel 4 | 2 . . 2 . . . . . . . . . . . . . . . . . . . . . Hover 1 | . . . . . . . . . . . . . . . . . . . . . . . . 1 Flight 3 | . . . . . . . . . . . . . . . . . . . . . . . 2 1 Utility 77 | 2 5 1 3 . . 4 2 6 5 . . 1 7 3 1 . . 1 3 4 1 8 9 11 Device 49 | 1 2 1 3 . . 1 1 3 3 . . 1 3 2 . . . 1 3 2 1 5 7 9 Storage 4 | 1 2 . . . . . . . . . . . . . . . . . . . . . 1 . Processor 13 | . 1 . . . . 2 1 1 2 . . . 1 1 1 . . . . . . . 1 2 Hackware 7 | . . . . . . . . 2 . . . . 3 . . . . . . . . 2 . . Protection 4 | . . . . . . 1 . . . . . . . . . . . . . 2 . 1 . . Artifact . | . . . . . . . . . . . . . . . . . . . . . . . . . Weapon 41 | 3 5 1 10 3 2 9 1 . . . . . . . . . . . . . . 3 1 3 Energy Gun 14 | 3 . . 4 3 1 3 . . . . . . . . . . . . . . . . . . Energy Cannon 11 | . 3 1 3 . 1 2 . . . . . . . . . . . . . . . . . 1 Ballistic Gun 6 | . 1 . 2 . . 2 1 . . . . . . . . . . . . . . . . . Ballistic Cannon 2 | . . . . . . 2 . . . . . . . . . . . . . . . . . . Launcher 5 | . 1 . 1 . . . . . . . . . . . . . . . . . . 1 . 2 Special Weapon 1 | . . . . . . . . . . . . . . . . . . . . . . 1 . . Impact Weapon . | . . . . . . . . . . . . . . . . . . . . . . . . . Slashing Weapon 1 | . . . . . . . . . . . . . . . . . . . . . . 1 . . Piercing Weapon 1 | . . . . . . . . . . . . . . . . . . . . . . . 1 . Special Melee Weapon . | . . . . . . . . . . . . . . . . . . . . . . . . . Unidentified Prototypes 27 | . . 1 4 . 2 5 1 . . . . . 2 1 . . 1 . . 1 . 1 5 3 Corrupted Parts 1 | . . . . . . 1 . . . . . . . . . . . . . . . . . . System Corruption 1 | . . . . . . 1 . . . . . . . . . . . . . . . . . . Parts Lost 56 | . 1 3 1 . . 3 1 . 3 . . 1 3 . . . . 1 . . . 19 3 17 Power 5 | . 1 . . . . 1 . . . . . . 1 . . . . . . . . 2 . . Propulsion 5 | . . . 1 . . . . . . . . . . . . . . . . . . 4 . . Utility 28 | . . . . . . 2 1 . 3 . . 1 2 . . . . 1 . . . 8 1 9 Weapon 18 | . . 3 . . . . . . . . . . . . . . . . . . . 5 2 8 Highest Loss Streak 16 | . 1 2 1 . . 2 1 . 2 . . 1 2 . . . . 1 . . . 16 3 10 To Critical Strikes . | . . . . . . . . . . . . . . . . . . . . . . . . . Average Backups 12 | 3 18 13 13 13 13 14 13 14 13 13 14 14 13 10 12 13 13 14 14 14 15 13 4 8 Power . | . 1 . 1 . . . . . . . . . . . . . . . . . . . . . Propulsion 1 | 1 3 2 1 2 2 4 3 . . . . . . . . . . . 1 1 1 2 . . Utility 6 | . 5 6 6 6 6 3 4 10 8 7 8 8 7 4 6 7 6 7 9 9 10 7 3 7 Weapon 3 | 1 8 4 4 4 5 6 5 2 3 4 4 4 4 4 4 4 4 3 2 2 2 2 1 . Tool/Special . | . . . . . . . . . . . . . . . . . . . . . . . . . Unused Backups 66 | . 8 . 9 2 1 8 8 2 . . . . 2 . . . . 3 3 . 1 8 . 11 Power . | . . . . . . . . . . . . . . . . . . . . . . . . . Propulsion 18 | . . . 2 . . 5 5 1 . . . . . . . . . . . . . 2 . 3 Utility 27 | . 3 . 4 1 . 1 1 1 . . . . 2 . . . . 1 . . 1 4 . 8 Weapon 19 | . 5 . 3 1 1 2 2 . . . . . . . . . . 2 2 . . 1 . . Tool/Special 2 | . . . . . . . . . . . . . . . . . . . 1 . . 1 . . Average Slot Usage (%) 76 | . 99 85 97 99 90 97 74 64 65 66 66 65 69 69 70 70 71 66 69 69 72 71 64 62 Engine 6 | . 13 14 12 21 18 17 12 1 5 . . . . . . . . . . . 2 1 . . Reactor 1 | . . . . . . . . . . 4 6 1 3 5 5 5 5 5 4 3 2 1 3 4 Treads 5 | . 3 . 13 21 18 18 8 . . 2 . . . 3 . 2 4 . 3 . 2 3 . 1 Leg 1 | . . . . . . . 3 6 6 3 . . . . . . . 1 . 3 2 . 1 1 Wheel 2 | . 21 14 12 . . . . . . . . . . . . . . . . . . . . . Device 18 | . 13 13 12 10 18 9 9 8 22 26 26 25 21 16 17 17 26 26 29 27 29 27 23 22 Storage 6 | . 14 14 10 10 9 9 9 6 6 6 6 6 5 5 5 5 5 5 5 5 5 4 2 4 Processor 6 | . . . . . . 7 9 7 2 . . . 4 10 13 17 11 10 10 10 10 5 6 8 Hackware 1 | . . . . . . . . 7 . . . . 5 5 2 . . . . . . 4 4 . Energy Gun 6 | . 9 . 11 32 26 3 . 3 6 6 . 4 6 5 5 15 8 5 3 5 8 5 6 4 Energy Cannon 6 | . 18 27 18 . . 7 4 . . . . . . 6 6 . 1 2 5 5 . . 4 6 Ballistic Gun 3 | . 3 . 4 1 . . 4 5 6 8 13 9 4 . 3 1 . . 2 4 8 10 . . Ballistic Cannon 4 | . . . . . . 14 13 9 6 3 6 4 4 2 . . 5 7 3 . . . . 1 Peak Build Rating 180 | 7 15 21 35 34 35 39 58 76 91 106 104 113 119 110 111 119 136 144 158 153 157 155 165 180 Average Rating 91 | 4 10 15 27 30 34 32 46 69 85 97 102 103 113 109 109 116 132 140 150 144 150 143 140 158 On Entrance 82 | . 7 14 21 34 31 35 34 56 76 90 102 102 109 100 110 111 119 132 144 141 149 155 45 143 Avg Prop Armor Cover (%) 7 | 16 . . . . . . . . . . . . . . . . . . . . . . 7 . Naked Turns . | . . . . . . . . . . . . . . . . . . . . . . . . . Heaviest Build 122 | 12 97 37 57 54 61 64 58 53 67 77 58 68 76 54 56 53 79 76 108 115 122 104 93 117 Greatest Support 236 | 26 40 16 60 40 42 42 40 62 82 152 133 146 114 89 89 149 171 120 120 81 159 159 148 236 Greatest Overweight (x) 6 | . 6 2 4 1 1 1 2 1 . . . . . . . . . . 1 1 1 2 1 1 Average Overweight (x) . | . 3 1 . 1 1 1 1 . . . . . . . . . . . . 1 . . . . Largest Inventory Capacity 25 | 8 25 15 15 15 15 15 15 15 15 15 15 15 15 15 15 15 15 15 15 15 15 15 10 10 Average Capacity 14 | 6 23 15 15 15 15 15 15 15 15 15 15 15 15 15 15 15 15 15 15 15 15 14 7 10 Most Carried 25 | 6 25 15 15 15 15 15 15 15 15 14 14 15 15 12 13 13 14 15 15 15 15 15 6 10 Average Carried 13 | 3 18 14 14 14 14 14 13 14 13 13 14 14 13 10 12 13 13 14 14 14 15 13 4 9 Final Capacity 15 | 8 15 15 15 15 15 15 15 15 15 15 15 15 15 15 15 15 15 15 15 15 15 5 10 10 Final Carried 15 | 6 15 13 15 15 15 15 15 15 13 14 14 14 12 11 13 13 14 15 15 15 15 5 6 10 Scrap Engine Consumption 335 | . . . . . . . 27 27 3 1 . 1 23 7 2 . 4 9 34 21 16 15 32 113 Constructs Created 26 | . . . . . . . 9 . . . . . . . . . . . . . 2 2 7 6 Constructs Modified 228 | . . . . . . . 15 12 2 16 2 9 9 6 3 5 15 5 28 12 7 14 23 45 Class Distribution -------------------- 54% | Construct 27% | Gunner 8% | Mutant 5% | Commander-Construct Dominant Class ---------------- Mutant | -10/Materials Mutant | -10/Mines Gunner | -9/Materials Gunner | -9/Mines Gunner | -8/Materials Gunner | -8/Storage Construct | -8/Recycling Hacker-Construct | -6/Factory Construct | -6/Lower Caves Construct | -6/Lower Caves Construct | -6/Data Miner Construct | -5/Proximity Caves Construct | -5/Factory Construct | -5/Upper Caves Construct | -5/Upper Caves Construct | -5/Warlord Construct | -4/Proximity Caves Construct | -4/Factory Construct | -4/Extension Construct | -4/Cetus Construct | -4/Archives Construct | -4/Hub_04(d) Construct | -3/Research Construct | -3/Armory Resources | -11 -10 -10 -9 -9 -8 -8 -8 -6 -6 -6 -6 -5 -5 -5 -5 -5 -4 -4 -4 -4 -4 -4 -3 -3 ----------- Run | Yrd Mat Min Mat Min Mat Sto Rec Fac Low Low Dat Pro Fac Upp Upp War Pro Fac Ext Cet Arc Hub Res Arm Matter Collected 11991 | 290 230 393 1153 64 96 1954 419 667 961 501 . 113 952 85 50 . 240 218 193 134 34 1076 390 1778 Remotely . | . . . . . . . . . . . . . . . . . . . . . . . . . Salvage Created 18604 | 117 838 364 1982 200 96 1834 1213 897 661 279 . 289 1084 347 77 . 386 143 1747 560 603 891 356 3640 Parts 853 | 8 49 28 116 4 2 99 41 34 26 8 . 18 45 9 4 . 20 5 62 25 33 48 8 161 Haulers Intercepted 18 | . 1 . 4 . 1 6 . 1 . . . . 1 . . . . 1 . . . 1 2 . Recyclers Shooed 13 | . 1 . . . . . 9 . . . . . . . . . . . 1 . . . 1 1 Parts Field Recycled . | . . . . . . . . . . . . . . . . . . . . . . . . . Retrieved Matter . | . . . . . . . . . . . . . . . . . . . . . . . . . Parts Self-Destructed 77 | . . . . . . . . . 24 8 . 16 . 5 3 . 21 . . . . . . . Prevented 8 | . . . . . . . . . . . . . . 5 2 . 1 . . . . . . . Parts Restored . | . . . . . . . . . . . . . . . . . . . . . . . . . Kills | -11 -10 -10 -9 -9 -8 -8 -8 -6 -6 -6 -6 -5 -5 -5 -5 -5 -4 -4 -4 -4 -4 -4 -3 -3 ------- Run | Yrd Mat Min Mat Min Mat Sto Rec Fac Low Low Dat Pro Fac Upp Upp War Pro Fac Ext Cet Arc Hub Res Arm Combat Hostiles Destroyed 300 | . 18 12 33 3 1 31 8 7 21 9 . 15 19 8 2 . 7 . 21 8 3 11 3 60 Melee 1 | . . . . . . . . . . . . . . . . . . . . . . . . 1 Guns 111 | . 10 . 7 3 1 4 . 3 8 9 . 11 10 3 1 . 3 . 6 7 3 10 1 11 Cannons 139 | . 5 7 16 . . 21 8 3 11 . . 3 8 4 1 . 4 . 14 . . 1 1 32 AOE 35 | . 3 5 7 . . 5 . . . . . 1 1 1 . . . . . . . . 1 11 Classes Destroyed 25 | 2 6 1 2 . . 1 2 4 . . . 1 . 1 . . 1 . 2 . . . 1 1 Worker 14 | . 1 3 1 . . 2 . 2 . . . . 1 . . . . . 1 . . 3 . . Builder 7 | . . . 2 . . 2 . . . . . . . . . . . . 2 . . 1 . . Tunneler 5 | 2 . 2 . . . . . . . . . . 1 . . . . . . . . . . . Hauler 18 | . 1 . 4 . 1 6 . 1 . . . . 1 . . . . 1 . . . 1 2 . Recycler 27 | 1 2 . 3 1 . 2 13 3 . . . . . . . . . . 2 . . . . . Mechanic 2 | . . 1 1 . . . . . . . . . . . . . . . . . . . . . Operator 20 | . 2 . . . . 3 . 1 . . . . 2 . . . . 1 1 . 9 . . 1 Drone 1 | . . . . . . . . . . . . 1 . . . . . . . . . . . . Watcher 18 | . 4 . 4 . . 2 . 2 . . . . 1 . . . . 1 1 1 . 1 . 1 Swarmer 55 | . 6 6 8 . . 6 . . 8 2 . 13 . . . . . . 1 . . 3 . 2 Saboteur 1 | . . . . . . . . . . . . . . . . . . . . . . . . 1 Grunt 104 | . 12 6 13 3 1 12 1 2 7 5 . . 8 6 2 . . . 7 . . 2 2 15 Brawler 1 | . . . . . . . . . . . . . . . . . . . 1 . . . . . Duelist 9 | . . . . . . 2 . . 1 1 . . 2 . . . . . 2 . . . . 1 Protector 2 | . . . . . . . 1 . . . . . . . . . 1 . . . . . . . Sentry 52 | . . . 12 . . 11 4 1 1 . . 1 6 . . . 1 . 3 . 3 3 . 6 Demolisher 3 | . . . . . . . . . . . . . . . . . 2 . . . . . . 1 Specialist 6 | . . . . . . . . 2 . . . . . . . . . . . . . . . 4 Hunter 17 | . . . . . . . . 1 . . . . 1 1 . . 1 . 2 . . 1 . 10 Programmer 27 | . . . . . . . . 1 . 1 . . 2 . . . 2 . 3 . . . . 18 Heavy 3 | . . . . . . . . 1 . . . . . . . . . . . . . 1 . 1 Behemoth 2 | . . . . . . . . . . . . . . . . . . . 1 . . . . 1 Cetus Guard 8 | . . . . . . . . . . . . . . . . . . . . 8 . . . . Lightning 1 | . . . . . . . . . . . . . . . . . . . . . . 1 . . Striker 1 | . . . . . . . . . . . . . . . . . . . . . . . 1 . Scrapper 2 | . . . . . . . 2 . . . . . . . . . . . . . . . . . Thug 2 | . . . . . . . . . 1 . . . . . . . . . 1 . . . . . Butcher 3 | . . . . . . . . . 3 . . . . . . . . . . . . . . . Mutant 1 | . . . . . . . . . . . . . . 1 . . . . . . . . . . Best Kill Streak 11 | 3 10 7 6 3 1 10 2 6 11 4 . 9 7 4 1 . 3 1 4 3 5 7 2 10 Combat Bots Only 11 | . 6 4 5 3 1 5 2 4 11 4 . 9 6 4 1 . 3 . 3 3 2 6 1 10 Max Kills in Single Turn 4 | 1 3 3 4 2 1 4 2 3 2 2 . 2 1 2 1 . 1 1 1 1 1 2 1 2 Gunslinging 1 | . . . . 1 . . . . . . . 1 . . . . . . . . . 1 . . Exploded 4 | . 2 2 4 . . 3 . . . . . 1 1 1 . . . . . . . . 1 2 Melee 1 | . . . . . . . . . . . . . . . . . . . . . . . . 1 Uniques/NPCs Destroyed . | . . . . . . . . . . . . . . . . . . . . . . . . . Combat | -11 -10 -10 -9 -9 -8 -8 -8 -6 -6 -6 -6 -5 -5 -5 -5 -5 -4 -4 -4 -4 -4 -4 -3 -3 -------- Run | Yrd Mat Min Mat Min Mat Sto Rec Fac Low Low Dat Pro Fac Upp Upp War Pro Fac Ext Cet Arc Hub Res Arm Hostile Shots Fired 1802 | . 58 36 118 4 . 92 13 42 52 54 . 51 76 26 6 . 35 6 124 96 6 202 62 643 Missed 556 | . 14 10 50 . . 22 3 17 16 15 . 15 33 9 3 . 10 2 37 27 2 52 20 199 Hits 1246 | . 44 26 68 4 . 70 10 25 36 39 . 36 43 17 3 . 25 4 87 69 4 150 42 444 Melee 14 | . . . . . . 3 . . 3 1 . . . . . . . . 1 . . . 4 2 Projectile 1232 | . 44 26 68 4 . 67 10 25 33 38 . 36 43 17 3 . 25 4 86 69 4 150 38 442 AOE 11 | . . . . . . . . . . . . . . . . . 9 . . . . . . 2 Critical Strikes 79 | . 1 . 5 . . 1 . . 2 . . . 3 1 . . 1 . 5 9 . 24 . 27 Actively Blocked 63 | . . . . . . . . . . . . . . . . . . . 5 9 . 22 . 27 Part Disruptions 3 | . . . . . . . . . . . . . . . . . . . . . . 1 . 2 Damage Taken 24873 | . 480 310 912 52 . 954 172 503 600 478 . 423 916 296 72 264 564 225 1077 1394 67 4809 1346 8959 Core 2639 | . 54 82 150 . . 68 26 29 37 55 . 27 109 57 . . 72 . 36 84 . 648 187 918 Absorbed by Shields 3705 | . . . . . . . . 30 72 222 . 136 13 . . . 205 59 765 379 65 226 . 1533 Reduced by Siege Mode 163 | . . . . . . . . . . . . . . . . . . . . . . . . 163 Ignored by Resistances 500 | . . . . . . . 2 6 . . . . 9 . . . 53 . . 157 . . . 273 Regen/Repaired (Parts) 10690 | . . . . . . . 24 154 44 690 33 185 541 256 73 99 451 123 862 488 83 591 682 5311 Core Remaining (%) 74 | 100 . 53 . 100 . . 100 . . . . 77 . . . . 70 . . . . 19 . . Volleys Fired 963 | 6 48 26 63 5 4 71 34 34 40 20 . 18 53 15 7 2 29 25 85 39 52 45 43 199 Largest 5 | 2 3 3 5 3 3 3 3 3 3 3 . 3 3 3 3 1 3 3 3 3 3 4 3 4 Hottest 431 | 90 168 168 227 194 194 185 152 155 155 155 . 155 155 141 125 70 157 276 431 374 374 206 232 246 Shots Fired 2178 | 12 102 44 192 17 12 182 79 88 90 59 . 54 154 45 17 2 69 38 164 64 57 153 87 397 Gun 1104 | 12 66 . 77 17 12 27 14 46 60 50 . 41 104 23 12 2 36 8 80 57 56 138 50 116 Cannon 1033 | . 33 40 109 . . 147 65 42 30 9 . 13 50 22 5 . 33 30 84 7 1 14 32 267 Launcher 41 | . 3 4 6 . . 8 . . . . . . . . . . . . . . . 1 5 14 Special . | . . . . . . . . . . . . . . . . . . . . . . . . . Kinetic 1061 | . 17 . 19 . . 98 66 62 60 52 . 49 139 30 12 2 60 20 90 20 6 93 35 131 Thermal 849 | 10 49 . 111 17 12 70 13 26 30 7 . 5 1 3 . . 5 18 51 44 51 59 31 236 Explosive 22 | . 3 4 . . . . . . . . . . . . . . . . . . . 1 5 9 Electromagnetic 246 | 2 33 40 62 . . 14 . . . . . . 14 12 5 . 4 . 23 . . . 16 21 Robot Hit Streak 38 | 4 9 7 12 10 6 14 13 28 19 19 . 9 10 9 9 . 34 35 24 38 11 15 25 36 Robot Miss Streak 7 | 2 3 3 4 2 1 4 5 5 7 4 . 5 7 2 4 . 2 2 2 1 2 3 2 3 Penetration Max 2 | . . . . . . 1 1 . . . . . 1 1 . . 1 1 1 1 1 1 1 2 Secondary Targets 12 | . 1 . 1 1 . 2 . . . 2 . 2 . . . . . . . 1 . 2 . . Max Gunslinging Chain 1 | . 1 . 1 1 . 1 . . . 1 . 1 . . . . . . . 1 . 1 . . Shots Hit Robots 1494 | 7 65 22 115 10 8 115 52 68 65 41 . 31 101 37 12 . 47 13 127 56 46 107 69 280 Core Hits 899 | 4 39 25 56 5 2 61 43 63 83 37 . 33 90 32 5 . 36 8 54 20 24 39 20 120 Critical Kills 24 | . . . 1 . . 1 1 1 . 2 . . 2 . . . . . 1 . 2 2 . 11 Critical Parts Destroyed 27 | . . . . . . . 2 . 2 1 . 1 8 . . . . . 1 1 . 6 3 2 Critical Strikes 98 | 1 1 2 1 1 . 12 7 2 3 4 . 5 13 5 . . 2 . 2 4 4 8 4 17 Burn 8 | 1 . . . 1 . 1 . . . . . . . . . . . . . 3 2 . . . Meltdown 6 | . . . 1 . . 1 . . . . . . . . . . . . . . . . . 4 Destroy 50 | . . . . . . . 3 1 2 3 . 1 11 . . . . . 2 1 2 8 3 13 Blast 27 | . . . . . . 10 4 1 1 1 . 4 2 2 . . 2 . . . . . . . Corrupt 7 | . 1 2 . . . . . . . . . . . 3 . . . . . . . . 1 . Melee Attacks 15 | . . . . . . . . . . . . . . . . . . . . . . 3 . 12 Impact . | . . . . . . . . . . . . . . . . . . . . . . . . . Slashing 3 | . . . . . . . . . . . . . . . . . . . . . . 3 . . Piercing 12 | . . . . . . . . . . . . . . . . . . . . . . . . 12 Sneak Attacks . | . . . . . . . . . . . . . . . . . . . . . . . . . Combat Hostiles . | . . . . . . . . . . . . . . . . . . . . . . . . . Follow-up Attacks . | . . . . . . . . . . . . . . . . . . . . . . . . . Damage Inflicted 52548 | 87 1202 1029 3403 181 151 3331 1170 1837 1827 1175 . 1022 3168 1322 360 . 1841 720 5940 2576 1677 3467 2324 12738 Guns 22344 | 87 477 . 853 181 151 331 208 928 1340 991 . 675 1785 578 273 . 760 253 1973 1986 1588 2978 1029 2919 Cannons 24007 | . 489 416 1589 . . 2515 962 680 487 184 . 151 1080 665 87 . 1081 345 3902 590 89 180 854 7661 Explosions 5667 | . 236 613 908 . . 460 . 194 . . . 196 303 79 . . . 122 . . . 131 441 1984 Melee 315 | . . . . . . . . . . . . . . . . . . . . . . 147 . 168 Ramming 171 | . . . 9 . . 25 . 35 . . . . . . . . . . 65 . . 31 . 6 Kinetic 21741 | . 94 . 112 . . 1614 973 840 956 915 . 738 2695 873 273 . 1729 458 2584 944 213 2019 801 2910 Thermal 21502 | 72 383 30 1553 181 151 1229 197 962 871 260 . 284 119 152 . . 24 262 2749 1632 1464 1139 717 7071 Explosive 3946 | . 236 583 517 . . . . . . . . . 216 . . . . . . . . 131 441 1822 Electromagnetic 4829 | 15 489 416 1168 . . 463 . . . . . . 138 297 87 . 88 . 542 . . . 365 761 Impact . | . . . . . . . . . . . . . . . . . . . . . . . . . Slashing 191 | . . . 44 . . . . . . . . . . . . . . . . . . 147 . . Piercing 168 | . . . . . . . . . . . . . . . . . . . . . . . . 168 Highest Corruption 44 | . 25 44 8 . . 2 2 2 2 1 1 1 8 8 8 9 12 2 1 1 1 39 . 19 Average Corruption 7 | . 21 29 2 . . 1 2 1 2 1 1 1 7 8 8 8 9 2 1 1 1 15 . 8 Corruption Purged . | . . . . . . . . . . . . . . . . . . . . . . . . . Corruption Blocked . | . . . . . . . . . . . . . . . . . . . . . . . . . Effects 255 | . 12 28 11 . . 10 7 10 . 3 1 1 12 13 7 3 19 . 3 4 1 33 . 77 Message Errors 53 | . 4 5 3 . . 2 1 2 . . . . 2 4 . . 7 . . 1 1 4 . 17 Matter Fused 72 | . 5 11 2 . . 3 1 4 . 2 . . 2 2 3 1 6 . 2 1 . 4 . 23 Heat Flow Errors 27 | . 3 2 . . . 1 1 . . . . . 2 2 1 . 3 . 1 . . 2 . 9 Energy Discharges 29 | . . 4 2 . . 1 1 . . . 1 1 2 . 3 1 . . . 1 . 6 . 6 Parts Rejected 7 | . . 1 . . . . . . . . . . . 1 . . . . . . . 2 . 3 Parts Fused 2 | . . . 1 . . . . . . . . . . . . . . . . . . . . 1 Data Loss (minor) 24 | . . 2 . . . 2 2 2 . . . . 3 3 . . 1 . . 1 . 4 . 4 Data Loss (major) 11 | . . 1 1 . . 1 1 2 . . . . . 1 . 1 . . . . . 1 . 2 Misfires 2 | . . 1 1 . . . . . . . . . . . . . . . . . . . . . Alerts 5 | . . . . . . . . . . . . . . . . . 1 . . . . 2 . 2 Misdirections 6 | . . . . . . . . . . . . . . . . . . . . . . 2 . 4 Weapon Failures 17 | . . 1 1 . . . . . . 1 . . 1 . . . 1 . . . . 6 . 6 Overload Shots 2 | . . . . . . . . . . . . . . . . . . . 2 . . . . . Overflow Damage 932 | . 20 36 14 . . 92 40 16 . . . 26 4 2 . . 5 51 323 . . . 30 273 Projectiles 783 | . 20 19 5 . . 88 40 . . . . . 4 2 . . 5 35 308 . . . . 257 Explosions 134 | . . 17 9 . . 4 . 16 . . . 26 . . . . . 16 . . . . 30 16 Melee 15 | . . . . . . . . . . . . . . . . . . . 15 . . . . . Knockbacks 101 | . . . . . . 8 11 9 4 6 . 2 16 9 . . 6 1 11 . . 1 1 16 Impact 2 | . . . . . . . . . . . . . . . . . . . 1 . . 1 . . Kinetic 95 | . . . . . . 7 10 8 4 5 . 2 16 9 . . 6 1 10 . . . 1 16 Secondary 4 | . . . . . . 1 1 1 . 1 . . . . . . . . . . . . . . Self-Inflicted Damage 434 | . . 49 66 . . 53 . 49 . . . . 78 . . . . 57 . . . 2 . 80 Shots 14 | . . 2 2 . . 2 . 1 . . . . 1 . . . . 1 . . . . . 5 Rammed 10 | . . . 2 . . 3 . . . . . . . . . . . . 2 . . 3 . . Targets Rammed 16 | . . . 2 . . 3 . 3 . . . . . . . . . . 3 . . 4 . 1 Kicked 5 | . . . . . . . . 3 . . . . . . . . . . 1 . . . . 1 Crushed 1 | . . . . . . . . . . . . . . . . . . . . . . 1 . . Highest Temperature 548 | 70 451 222 485 166 206 353 306 159 72 284 . 145 333 334 248 360 292 267 463 516 262 390 548 354 Average Temperature 99 | 26 117 82 98 66 87 83 89 44 26 88 . 72 94 92 92 190 90 100 132 167 34 87 183 75 Received Heat Transfer 2878 | . 219 96 357 30 . 261 69 6 126 156 . . 246 131 . . 6 18 141 206 12 252 135 411 Effects 24 | . 5 . 3 . . . 1 . . . . . . . . . 1 . 4 3 . . 7 . Shutdowns 2 | . . . . . . . . . . . . . . . . . . . 1 . . . 1 . Energy Bleed 4 | . . . . . . . . . . . . . . . . . 1 . 1 1 . . 1 . Interference 10 | . 5 . . . . . 1 . . . . . . . . . . . 2 2 . . . . Matter Decay 3 | . . . 1 . . . . . . . . . . . . . . . . . . . 2 . Damage (minor) 2 | . . . 2 . . . . . . . . . . . . . . . . . . . . . Damage (major) 2 | . . . . . . . . . . . . . . . . . . . . . . . 2 . Damage (core) 1 | . . . . . . . . . . . . . . . . . . . . . . . 1 . Siege Activations 3 | . . . . . . . . . . 1 . . . . . . . . . . . . . 2 Total Turns 85 | . . . . . . . . . . 8 . . . . . . . . . . . . . 77 Longest Duration 48 | . . . . . . . . . . 8 . . . . . . . . . . . . . 48 Martial Activations . | . . . . . . . . . . . . . . . . . . . . . . . . . Shielding Activations . | . . . . . . . . . . . . . . . . . . . . . . . . . Robots Disrupted 1 | . . . . . . . . . . . . . . . . . . . . . . 1 . . Combat Hostiles 1 | . . . . . . . . . . . . . . . . . . . . . . 1 . . Robots Corrupted 6 | . . . 3 . . . . . . . . . . . . . . . 2 . . . . 1 Combat Hostiles 5 | . . . 3 . . . . . . . . . . . . . . . 1 . . . . 1 Parts Fried 18 | . 2 1 9 . . 1 . . . . . . . . . . . . 1 . . . . 4 Impact Corruptions 2 | . . . . . . . . . . . . . . . . . . . 2 . . . . . Robots Melted 11 | . 1 . 1 . . 1 . 1 2 . . . . . . . . . . 1 . . . 4 Combat Hostiles 9 | . . . . . . 1 . 1 2 . . . . . . . . . . 1 . . . 4 Parts Melted 55 | . 3 . 6 . 1 4 1 4 10 2 . . . 1 . . . . 1 1 3 2 3 13 Heat Transferred 28063 | 260 1040 . 2473 444 296 1926 161 2809 3774 1036 . 707 248 250 . . 18 174 1543 1739 1702 1283 1142 5038 Parts Sabotaged 4 | . . . . . . . . . . . . . . . . . . . 1 . . . . 3 Parts Stolen . | . . . . . . . . . . . . . . . . . . . . . . . . . Parts Stripped . | . . . . . . . . . . . . . . . . . . . . . . . . . Power Chain Reactions 11 | . . 1 1 . . 2 . 2 . . . 3 1 1 . . . . . . . . . . Alert | -11 -10 -10 -9 -9 -8 -8 -8 -6 -6 -6 -6 -5 -5 -5 -5 -5 -4 -4 -4 -4 -4 -4 -3 -3 ------- Run | Yrd Mat Min Mat Min Mat Sto Rec Fac Low Low Dat Pro Fac Upp Upp War Pro Fac Ext Cet Arc Hub Res Arm Maximum Alert Level 4 | . 3 2 3 1 . 2 1 . . . . . 3 . . . . 3 3 2 . 2 . 4 Low Security (%) 46 | 100 71 . 27 72 100 49 92 100 . . . . . . . . . 39 . . 100 21 100 13 Level 1 22 | . 1 76 35 27 . 20 7 . . . . . . . . . . 9 32 75 . 66 . 17 Level 2 16 | . 6 23 10 . . 30 . . . . . . 78 . . . . 13 61 24 . 12 . 8 Level 3 12 | . 20 . 26 . . . . . . . . . 21 . . . . 36 5 . . . . 46 Level 4 2 | . . . . . . . . . . . . . . . . . . . . . . . . 12 Level 5 . | . . . . . . . . . . . . . . . . . . . . . . . . . High Security . | . . . . . . . . . . . . . . . . . . . . . . . . . Max Security . | . . . . . . . . . . . . . . . . . . . . . . . . . Peak Influence 1212 | 10 862 459 893 343 20 609 255 166 . . . . 927 . . . . 1017 941 522 198 431 86 1212 Initial 639 | . . 318 129 343 . . 234 . . . . . 639 . . . . 21 485 522 92 6 84 9 Average 315 | 1 248 383 420 132 2 281 43 71 . . . . 622 . . . . 439 462 321 115 281 19 664 Influence Increases 13760 | 15 1205 346 1408 75 27 1149 274 569 385 250 . 390 1295 275 96 . 195 1210 1204 185 217 747 218 2025 Destroy 0b10 Robot/C 6840 | . 420 240 760 60 20 620 140 280 340 180 . 280 380 140 60 . 120 360 560 160 100 340 60 1220 Destroy 0b10 Robot/NC 615 | 15 55 30 85 5 5 90 75 50 . . . 5 30 . . . 5 20 45 5 45 30 10 10 Destroy Leader 1312 | . 78 40 148 10 2 176 . 108 30 40 . 30 114 30 . . 10 64 74 . . 72 4 282 Allied During Kill 490 | . 4 . 43 . . . 14 55 . . . . . . 6 . . 73 167 4 14 74 . 36 Successful Hack 71 | . . . 7 . . . . 26 . . . . 6 . . . . . . . . . 32 . Disable Machine 1035 | . . 15 90 . . 75 30 30 . . . . 135 . . . . 270 15 . 30 120 . 225 Destroy Structure 1149 | . 3 21 28 . . 53 15 5 . . . . 180 . . . . 408 52 16 28 96 52 192 Advance Influence 450 | . . . . . . . . . . . . . 450 . . . . . . . . . . . Partial Spotted 45 | . . . . . . . . . . . . . . . . . . . 30 . . . . 15 Lose Combat Pursuer 825 | . 15 . 75 . . 135 . 15 15 30 . 75 . 105 30 . 60 15 135 . . 15 60 45 Miscellaneous 928 | . 630 . 172 . . . . . . . . . . . . . . . 126 . . . . . Influence Decreases 12548 | 15 388 831 859 956 27 546 877 501 446 182 75 90 877 457 203 429 161 253 1262 887 429 604 362 831 Entered New Map 3791 | . . 499 203 538 . . 369 . 26 2 75 . 111 267 103 429 . 13 506 411 139 13 78 9 Time Decay 6823 | 15 358 302 486 418 27 516 418 401 390 180 . 80 286 190 100 . 161 190 526 356 270 294 267 592 Lost Part 534 | . 10 30 10 . . 30 10 . 30 . . 10 30 . . . . 10 . . . 177 17 170 Lost Ally 800 | . 20 . 160 . . . 80 100 . . . . . . . . . 40 80 120 20 120 . 60 Purge Threat 600 | . . . . . . . . . . . . . 450 . . . . . 150 . . . . . Squads Dispatched 58 | . 6 1 3 1 . 4 . 8 . . . . 8 . . . . 3 1 . . 4 6 13 Investigation 9 | . 3 . 1 1 . 1 . 1 . . . . 1 . . . . . . . . . 1 . Extermination 12 | . . . . . . . . 1 . . . . 1 . . . . 1 . . . 1 . 8 Reinforcement 25 | . 2 . 1 . . 2 . 4 . . . . 2 . . . . 2 . . . 3 5 4 Assault 6 | . 1 1 1 . . . . . . . . . 1 . . . . . 1 . . . . 1 Garrison 6 | . . . . . . 1 . 2 . . . . 3 . . . . . . . . . . . Intercept . | . . . . . . . . . . . . . . . . . . . . . . . . . Searches Triggered . | . . . . . . . . . . . . . . . . . . . . . . . . . Construction Impeded 2 | . . . . . . . . 1 . . . . . . . . . 1 . . . . . . Haulers Reinforced 7 | . . . . . . . . 1 . . . . . . . . . . . . . 2 4 . Active Scanning Responses . | . . . . . . . . . . . . . . . . . . . . . . . . . Cargo Convoy Interrupts . | . . . . . . . . . . . . . . . . . . . . . . . . . Stealth | -11 -10 -10 -9 -9 -8 -8 -8 -6 -6 -6 -6 -5 -5 -5 -5 -5 -4 -4 -4 -4 -4 -4 -3 -3 --------- Run | Yrd Mat Min Mat Min Mat Sto Rec Fac Low Low Dat Pro Fac Upp Upp War Pro Fac Ext Cet Arc Hub Res Arm Distress Signals 51 | . 2 . 3 . . 3 . 1 . . . 3 1 . . . 16 1 2 2 1 3 11 2 Communications Jammed 6 | . . . . . . . . . . . . . . . . . . . . . . . . 6 Distress Signals . | . . . . . . . . . . . . . . . . . . . . . . . . . Times Spotted 510 | . 28 14 51 2 1 44 9 18 22 12 . 18 28 15 6 . 10 11 38 11 20 45 23 84 Peak Tracking Total 12 | . 4 4 6 2 1 7 3 4 7 4 . 5 4 4 4 . 3 4 5 5 1 12 4 9 Tactical Retreats 41 | . 1 . 5 . . 5 . 1 1 2 . 2 . 4 2 . 3 1 6 . . 1 4 3 Traps | -11 -10 -10 -9 -9 -8 -8 -8 -6 -6 -6 -6 -5 -5 -5 -5 -5 -4 -4 -4 -4 -4 -4 -3 -3 ------- Run | Yrd Mat Min Mat Min Mat Sto Rec Fac Low Low Dat Pro Fac Upp Upp War Pro Fac Ext Cet Arc Hub Res Arm Traps Triggered 17 | . 2 . . . . 3 . 2 . . . . . . . 4 . . 2 . . . . 4 Indirectly . | . . . . . . . . . . . . . . . . . . . . . . . . . Trap Hack Attempts . | . . . . . . . . . . . . . . . . . . . . . . . . . Triggered . | . . . . . . . . . . . . . . . . . . . . . . . . . Disarmed . | . . . . . . . . . . . . . . . . . . . . . . . . . Reprogrammed . | . . . . . . . . . . . . . . . . . . . . . . . . . Reused . | . . . . . . . . . . . . . . . . . . . . . . . . . Traps Extracted . | . . . . . . . . . . . . . . . . . . . . . . . . . Installed . | . . . . . . . . . . . . . . . . . . . . . . . . . Triggered . | . . . . . . . . . . . . . . . . . . . . . . . . . Most Traps Carried 1 | . . . . . 1 1 . . . . . . . . . . . . . . . . . . Machines | -11 -10 -10 -9 -9 -8 -8 -8 -6 -6 -6 -6 -5 -5 -5 -5 -5 -4 -4 -4 -4 -4 -4 -3 -3 ---------- Run | Yrd Mat Min Mat Min Mat Sto Rec Fac Low Low Dat Pro Fac Upp Upp War Pro Fac Ext Cet Arc Hub Res Arm Machines Disabled 76 | . . 1 6 . . 5 2 2 1 . . . 9 . . . 3 18 4 . 2 8 . 15 Max in Single Turn 4 | . . 1 2 . . 1 1 1 1 . . . 3 . . . 1 4 1 . 1 1 . 1 Garrison Access 3 | . . . . . . 1 . 1 . . . . . . . . . . . . . 1 . . Network Hub 1 | . . . . . . . . . . . . . . . . . . . . . . 1 . . Energy Cycler 2 | . . . . . . . . . . . . . . . . . . . 1 . . . . 1 Machines Repaired . | . . . . . . . . . . . . . . . . . . . . . . . . . Machines Dismantled 1 | . . . . . . . . . . . . . . . . . . . . . . 1 . . Machines Sabotaged . | . . . . . . . . . . . . . . . . . . . . . . . . . Overloaded Fab Kills . | . . . . . . . . . . . . . . . . . . . . . . . . . Hacking | -11 -10 -10 -9 -9 -8 -8 -8 -6 -6 -6 -6 -5 -5 -5 -5 -5 -4 -4 -4 -4 -4 -4 -3 -3 --------- Run | Yrd Mat Min Mat Min Mat Sto Rec Fac Low Low Dat Pro Fac Upp Upp War Pro Fac Ext Cet Arc Hub Res Arm Machines Accessed 41 | . . . 6 2 . 1 2 6 1 . 4 . 5 . . . 2 . 2 . . 1 5 4 Terminals 25 | . . . 5 . . . . 4 1 . . . 4 . . . 1 . 2 . . . 5 3 Fabricators 1 | . . . . . . . . . . . . . . . . . . . . . . . . 1 Repair Stations . | . . . . . . . . . . . . . . . . . . . . . . . . . Recycling Units . | . . . . . . . . . . . . . . . . . . . . . . . . . Scanalyzers 1 | . . . 1 . . . . . . . . . . . . . . . . . . . . . Garrison Access 5 | . . . . . . 1 . 2 . . . . 1 . . . . . . . . 1 . . Total Hacks 103 | . . . 12 2 . 2 3 8 8 . 22 . 21 . . . 2 . 2 . . 1 12 8 Successful 67 | . . . 4 2 . 1 3 4 8 . 22 . 9 . . . 2 . 2 . . 1 8 1 Failed 35 | . . . 7 . . 1 . 4 . . . . 12 . . . . . . . . . 4 7 Catastrophic 10 | . . . 1 . . . . 2 . . . . 2 . . . . . . . . . . 5 Database Lockouts 1 | . . . 1 . . . . . . . . . . . . . . . . . . . . . Manual 15 | . 1 . 8 . . 1 . . . . . . 1 . . . . . . . . . 1 3 Terminals 64 | . . . 10 . . . . 5 8 . . . 19 . . . 1 . 2 . . . 12 7 Fabricators 1 | . . . . . . . . . . . . . . . . . . . . . . . . 1 Repair Stations . | . . . . . . . . . . . . . . . . . . . . . . . . . Recycling Units . | . . . . . . . . . . . . . . . . . . . . . . . . . Scanalyzers 2 | . . . 2 . . . . . . . . . . . . . . . . . . . . . Garrison Access 8 | . . . . . . 2 . 3 . . . . 2 . . . . . . . . 1 . . Terminal Hacks 60 | . . . 1 2 . . 3 3 8 . 22 . 9 . . . 2 . 2 . . . 7 1 Record 13 | . . . . . . . 1 . 8 . 2 . . . . . 2 . . . . . . . Part Schematic 10 | . . . . . . . . . . . 10 . . . . . . . . . . . . . Robot Schematic 7 | . . . . . . . . . . . 7 . . . . . . . . . . . . . Prototype ID Bank 5 | . . . . . . . . 1 . . 3 . . . . . . . . . . . 1 . Open Door 2 | . . . . 2 . . . . . . . . . . . . . . . . . . . . Branch Access Points 4 | . . . 1 . . . . 1 . . . . 1 . . . . . . . . . 1 . Terminal Index 1 | . . . . . . . . . . . . . . . . . . . . . . . 1 . Alert Level 5 | . . . . . . . . . . . . . 2 . . . . . 1 . . . 1 1 Unreport Threat 4 | . . . . . . . . . . . . . 3 . . . . . 1 . . . . . Locate Traps 3 | . . . . . . . . . . . . . 2 . . . . . . . . . 1 . Hauler Manifests 3 | . . . . . . . . 1 . . . . 1 . . . . . . . . . 1 . Zone Layout 1 | . . . . . . . . . . . . . . . . . . . . . . . 1 . Release Object 2 | . . . . . . . 2 . . . . . . . . . . . . . . . . . Fabricator Hacks . | . . . . . . . . . . . . . . . . . . . . . . . . . Repair Station Hacks . | . . . . . . . . . . . . . . . . . . . . . . . . . Recycling Unit Hacks . | . . . . . . . . . . . . . . . . . . . . . . . . . Scanalyzer 1 | . . . 1 . . . . . . . . . . . . . . . . . . . . . Retrieve Study 1 | . . . 1 . . . . . . . . . . . . . . . . . . . . . Garrison Access Hacks 3 | . . . . . . 1 . 1 . . . . . . . . . . . . . 1 . . Seal Access 3 | . . . . . . 1 . 1 . . . . . . . . . . . . . 1 . . Unauthorized Hacks 3 | . . . 2 . . . . . . . . . . . . . . . . . . . 1 . Terminals 3 | . . . 2 . . . . . . . . . . . . . . . . . . . 1 . Botnet 3 | . . . 2 . . . . . . . . . . . . . . . . . . . 1 . Fabricators . | . . . . . . . . . . . . . . . . . . . . . . . . . Repair Stations . | . . . . . . . . . . . . . . . . . . . . . . . . . Recycling Units . | . . . . . . . . . . . . . . . . . . . . . . . . . Scanalyzers . | . . . . . . . . . . . . . . . . . . . . . . . . . Garrison Access . | . . . . . . . . . . . . . . . . . . . . . . . . . Data Cores Recovered 8 | . 2 . . . . 1 . 1 . . . . 2 . . . . 1 1 . . . . . Used 2 | . . . . . . . . . . . . . 1 . . . . . 1 . . . . . Hacking Detections 21 | . . . 5 . . . . 3 1 . . . 5 . . . . . . . . . 3 4 Full Trace Events 3 | . . . 1 . . . . 1 . . . . 1 . . . . . . . . . . . Feedback Events 1 | . . . . . . . . 1 . . . . . . . . . . . . . . . . Corruption 1 | . . . . . . . . 1 . . . . . . . . . . . . . . . . Feedback Blocked . | . . . . . . . . . . . . . . . . . . . . . . . . . Robot Schematics Acquired 7 | . . . . . . . . . . . 7 . . . . . . . . . . . . . Robots Built . | . . . . . . . . . . . . . . . . . . . . . . . . . Authchips . | . . . . . . . . . . . . . . . . . . . . . . . . . Time . | . . . . . . . . . . . . . . . . . . . . . . . . . Total Robot Build Rating . | . . . . . . . . . . . . . . . . . . . . . . . . . Part Schematics Acquired 10 | . . . . . . . . . . . 10 . . . . . . . . . . . . . Parts Built . | . . . . . . . . . . . . . . . . . . . . . . . . . Authchips . | . . . . . . . . . . . . . . . . . . . . . . . . . Time . | . . . . . . . . . . . . . . . . . . . . . . . . . Total Part Build Rating . | . . . . . . . . . . . . . . . . . . . . . . . . . Part Studies Acquired 1 | . . . 1 . . . . . . . . . . . . . . . . . . . . . Parts Repaired . | . . . . . . . . . . . . . . . . . . . . . . . . . Time . | . . . . . . . . . . . . . . . . . . . . . . . . . Parts Recycled . | . . . . . . . . . . . . . . . . . . . . . . . . . Recycled Matter . | . . . . . . . . . . . . . . . . . . . . . . . . . Retrieved Matter . | . . . . . . . . . . . . . . . . . . . . . . . . . Retrieved Components . | . . . . . . . . . . . . . . . . . . . . . . . . . Parts Scanalyzed . | . . . . . . . . . . . . . . . . . . . . . . . . . Part Schematics Acquired . | . . . . . . . . . . . . . . . . . . . . . . . . . Parts Damaged . | . . . . . . . . . . . . . . . . . . . . . . . . . Bothacking | -11 -10 -10 -9 -9 -8 -8 -8 -6 -6 -6 -6 -5 -5 -5 -5 -5 -4 -4 -4 -4 -4 -4 -3 -3 ------------ Run | Yrd Mat Min Mat Min Mat Sto Rec Fac Low Low Dat Pro Fac Upp Upp War Pro Fac Ext Cet Arc Hub Res Arm Used RIF Installer . | . . . . . . . . . . . . . . . . . . . . . . . . . Robots Hacked . | . . . . . . . . . . . . . . . . . . . . . . . . . Non-combat . | . . . . . . . . . . . . . . . . . . . . . . . . . Combat . | . . . . . . . . . . . . . . . . . . . . . . . . . Robot Hacks Applied . | . . . . . . . . . . . . . . . . . . . . . . . . . Relay Couplers Released . | . . . . . . . . . . . . . . . . . . . . . . . . . Fabnet Peak Effective % . | . . . . . . . . . . . . . . . . . . . . . . . . . Robots Rewired 25 | . . . . . . . 13 . . . . . . . . . 2 . 10 . . . . . Allies Hacked 3 | . . . . . . . . . . . . . . . . . . . 2 . . 1 . . Hacks Repelled . | . . . . . . . . . . . . . . . . . . . . . . . . . Allies | -11 -10 -10 -9 -9 -8 -8 -8 -6 -6 -6 -6 -5 -5 -5 -5 -5 -4 -4 -4 -4 -4 -4 -3 -3 -------- Run | Yrd Mat Min Mat Min Mat Sto Rec Fac Low Low Dat Pro Fac Upp Upp War Pro Fac Ext Cet Arc Hub Res Arm Total Allies 53 | . 1 3 8 . . . 13 . . . . . . . 2 . 2 . 11 . 2 7 . 4 Largest Group 7 | . 1 3 5 . . . 7 7 . . . . . . 2 2 2 2 6 4 2 5 . 4 Highest-Rated Group 268 | . 90 40 87 . . . 118 118 . . . . . . 56 56 98 98 268 164 98 240 . 200 Highest-Rated Ally 90 | . 90 16 42 . . . 27 27 . . . . . . 28 28 49 49 51 51 49 49 . 50 Total Orders 9 | . . . . . . . . 4 . . . . . . . . . 3 . 2 . . . . STAY 4 | . . . . . . . . 2 . . . . . . . . . 2 . . . . . . FOLLOW 3 | . . . . . . . . 2 . . . . . . . . . 1 . . . . . . RETURN 2 | . . . . . . . . . . . . . . . . . . . . 2 . . . . Ally Attacks 327 | . 13 . 41 . . . 34 66 . . . . . . 2 . . 27 54 18 12 45 . 15 Total Damage 9617 | . 547 . 462 . . . 423 884 . . . . . . 46 . . 3119 1493 347 385 1377 . 534 Kills 63 | . 4 . 7 . . . 5 8 . . . . . . 1 . . 19 10 . 2 6 . 1 Allies Corrupted 1 | . . . . . . . . . . . . . . . . . . . . . . 1 . . Allies Melted 2 | . 1 . . . . . 1 . . . . . . . . . . . . . . . . . X0-1V1 Amusement Gains 447 | . 2 . . . . 40 90 15 . . . . 10 . . 60 . 10 . . . 95 53 72 Good Acts 179 | . 10 . 30 7 . 13 15 6 7 4 . 4 2 1 5 . 5 8 8 1 3 18 9 23 Bad Acts 125 | . 29 4 39 2 1 1 . 3 3 2 . 5 5 5 2 . 5 5 5 . 1 3 2 3 Intel | -11 -10 -10 -9 -9 -8 -8 -8 -6 -6 -6 -6 -5 -5 -5 -5 -5 -4 -4 -4 -4 -4 -4 -3 -3 ------- Run | Yrd Mat Min Mat Min Mat Sto Rec Fac Low Low Dat Pro Fac Upp Upp War Pro Fac Ext Cet Arc Hub Res Arm Active Infowar (turns) 12189 | 17 620 . . . . 1317 616 . 169 . . . 387 347 203 120 532 394 1476 797 593 663 1080 2858 Optics 1608 | . . . . . . . . . . . . . . . . . . . . . . . . 1608 Sensors 6054 | . . . . . . . . . . . . . . 347 203 120 532 394 1476 797 593 663 . 929 IFF 152 | . . . . . . . . . 152 . . . . . . . . . . . . . . . Traps 2269 | . . . . . . . . . . . . . . . . . . . . 1 . . 1080 1188 Seismic 2957 | 17 620 . . . . 1317 616 . . . . . 387 . . . . . . . . . . . Machine Analysis 17 | . . . . . . . . . 17 . . . . . . . . . . . . . . . Jamming 74 | . . . . . . . . . . . . . . . . . . . . . . . . 74 Robot Analysis Total . | . . . . . . . . . . . . . . . . . . . . . . . . . Derelict Logs Recovered 15 | . . 3 . 3 . . . . 2 3 . . . 2 2 . . . . . . . . . Drone Launches 16 | . . . . . . . . . . . . . . . . . . . . 8 . 8 . . Drone Recoveries 14 | . . . . . . . . . . . . . . . . . . . . 6 . 8 . . Exploration | -11 -10 -10 -9 -9 -8 -8 -8 -6 -6 -6 -6 -5 -5 -5 -5 -5 -4 -4 -4 -4 -4 -4 -3 -3 ------------- Run | Yrd Mat Min Mat Min Mat Sto Rec Fac Low Low Dat Pro Fac Upp Upp War Pro Fac Ext Cet Arc Hub Res Arm Turns Passed 21053 | 113 847 677 1268 1095 172 2176 2060 1070 955 368 51 199 634 380 203 120 532 394 1476 818 593 719 1080 3053 Spaces Moved 12669 | 66 399 499 640 418 60 717 473 771 899 328 83 233 772 420 339 176 558 583 980 373 236 272 684 1690 Core 2 | 2 . . . . . . . . . . . . . . . . . . . . . . . . Treads 4193 | 13 4 . 262 418 60 717 233 . . 98 . 34 . 316 . 104 537 49 582 17 136 212 92 309 Legs 3527 | . . . . . . . 240 771 899 189 . . . . . . 21 139 124 265 100 38 80 661 Wheels 1535 | 51 395 499 378 . . . . . . . . . . . . . . . . . . . . 212 Hover 2095 | . . . . . . . . . . 41 83 199 375 58 . 15 . 395 274 91 . 22 200 342 Flight 1317 | . . . . . . . . . . . . . 397 46 339 57 . . . . . . 312 166 Fastest Speed 40 | 50 90 115 80 250 237 237 162 92 92 61 61 53 42 48 48 48 48 53 51 176 178 130 40 51 Average Speed 122 | 104 143 119 141 250 241 254 210 114 92 89 61 54 53 65 48 48 48 53 100 182 184 188 134 125 Slowest Speed 360 | 160 190 130 330 250 250 255 360 162 92 97 61 61 68 68 48 48 53 53 181 201 190 292 173 279 Overloaded Moves . | . . . . . . . . . . . . . . . . . . . . . . . . . Propulsion Burnouts . | . . . . . . . . . . . . . . . . . . . . . . . . . Robots Hopped . | . . . . . . . . . . . . . . . . . . . . . . . . . Potential Cave-ins . | . . . . . . . . . . . . . . . . . . . . . . . . . Cave-ins Triggered . | . . . . . . . . . . . . . . . . . . . . . . . . . Exploration Rate (%) 57 | 3 91 98 70 93 9 93 97 22 95 60 75 39 24 56 65 19 64 16 86 56 83 36 23 59 Regions Visited 24 Branch Regions 17 Pre-discovered Areas 3 | . . 1 . 1 . . . . . . 1 . . . . . . . . . . . . . Known Exits Taken 21 | . 1 . 1 1 1 1 1 1 1 1 . 1 1 1 1 1 1 1 1 1 1 1 1 . Unknown Exits Taken 3 | 1 . 1 . . . . . . . . 1 . . . . . . . . . . . . . Scrap Searched 13 | . . 1 . 1 . . . . 3 3 . . . 1 2 . 2 . . . . . . . Spaces Dug 36 | . . . . . . . . 1 1 . . . 2 . 2 3 2 6 1 . . 4 2 12 Terrain Destroyed 623 | . . 21 21 . . 51 11 10 2 22 . 12 95 9 4 3 6 68 34 7 14 57 27 149 Melee 2 | . . . . . . . . . . . . . . . . . . . . . . . . 2 Projectile 357 | . . . 15 . . 39 11 6 2 18 . 9 31 6 4 3 6 20 33 7 14 42 11 80 AOE 255 | . . 21 6 . . 12 . 3 . . . 1 64 3 . . . 48 . . . 15 16 66 Terrain Rammed . | . . . . . . . . . . . . . . . . . . . . . . . . . Walls Destroyed . | . . . . . . . . . . . . . . . . . . . . . . . . . Machines Disabled . | . . . . . . . . . . . . . . . . . . . . . . . . . Actions | -11 -10 -10 -9 -9 -8 -8 -8 -6 -6 -6 -6 -5 -5 -5 -5 -5 -4 -4 -4 -4 -4 -4 -3 -3 --------- Run | Yrd Mat Min Mat Min Mat Sto Rec Fac Low Low Dat Pro Fac Upp Upp War Pro Fac Ext Cet Arc Hub Res Arm Total 16507 | 94 585 538 868 460 79 925 1489 897 956 361 82 272 896 494 368 209 776 637 1339 455 345 360 773 2249 Wait 2069 | 7 68 3 84 17 6 68 818 68 6 13 . 19 50 53 20 32 154 20 165 34 54 5 20 285 Move 12645 | 65 398 498 639 417 59 716 472 770 898 327 82 232 771 419 338 175 557 582 979 372 235 271 683 1690 Hop . | . . . . . . . . . . . . . . . . . . . . . . . . . Pick Up 136 | 7 25 2 19 7 1 14 9 8 2 1 . 1 6 1 1 . 3 5 2 2 . 6 2 12 Fast Attach 92 | 6 1 1 16 2 3 13 2 2 2 . . 1 1 1 1 . 1 1 2 1 1 4 11 19 Attach 65 | 1 4 4 11 . 1 6 1 3 4 . . 1 5 2 . . 2 . 1 2 . 5 4 8 Detach 25 | . 3 . 4 . . 5 4 . . . . . . . . . . . . . 1 . 3 5 Swap 65 | 2 21 2 4 3 1 7 . 1 . . . . 4 2 . . . . 1 2 . 7 1 7 Drop 163 | . 17 2 26 9 4 22 25 8 4 . . . 6 1 1 . 1 4 4 3 2 7 6 11 Fire 963 | 6 48 26 63 5 4 71 34 34 40 20 . 18 53 15 7 2 29 25 85 39 52 45 43 199 Melee 15 | . . . . . . . . . . . . . . . . . . . . . . 3 . 12 Ram 1 | . . . . . . . . . . . . . . . . . . . . . . 1 . . Kick 5 | . . . . . . . . 3 . . . . . . . . . . 1 . . . . 1 Crush 10 | . . . 2 . . 3 . . . . . . . . . . . . 2 . . 3 . . Escape Stasis 4 | . . . . . . . . . . . . . . . . . . . 4 . . . . . Rewire 246 | . . . . . . . 124 . . . . . . . . . 29 . 93 . . . . . Trap . | . . . . . . . . . . . . . . . . . . . . . . . . . Miscellaneous 3 | . . . . . . . . . . . . . . . . . . . . . . 3 . . Route ------- -11/Scrapyard -10/Materials (discovered 4 exits: *Mat x2 / *Min / Sub) -10/Mines (discovered 2 exits: *Mat x2) -9/Materials (discovered 4 exits: *Mat x3 / *Min) -9/Mines (discovered 3 exits: *Mat x2 / [*Zio]) -8/Materials (discovered 2 exits: Fac / *Sto) -8/Storage (discovered 2 exits: *Fac / *Rec) -8/Recycling -6/Factory (discovered 3 exits: Fac / *Low x2) -6/Lower Caves -6/Lower Caves (discovered 2 exits: *Fac / *Dat) -6/Data Miner -5/Proximity Caves -5/Factory (discovered 4 exits: Fac x2 / *Upp x2) -5/Upper Caves -5/Upper Caves -5/Warlord -4/Proximity Caves -4/Factory (discovered 4 exits: Res / *Upp / *Ext x2) -4/Extension (discovered 3 exits: *Res x2 / *Cet) -4/Cetus (discovered 2 exits: *Res / *Arc) -4/Archives (discovered 3 exits: *Res / *Hub x2) -4/Hub_04(d) (discovered 2 exits: *Res x2) -3/Research (discovered 5 exits: Res x2 / *Arm / Qua x2) -3/Armory (discovered 2 exits: Res / Lab) History --------- Turn | Location | Event 20 | -11/Scrapyard | Discovered new exit (range 15) 114 | -11/Scrapyard | Entered Materials 313 | -10/Materials | Build established: Mutant 396 | -10/Materials | Discovered new exit (range 8) 582 | -10/Materials | Prayed at D.C.S.S. Altar Unit 630 | -10/Materials | Discovered new exit (range 15) 641 | -10/Materials | X0-1V1 added 0b10 threat records associated with you (minor) 654 | -10/Materials | X0-1V1 sent allied H-61 Shepherd (x1) 658 | -10/Materials | X0-1V1 activates XOMVISION 659 | -10/Materials | X0-1V1 foreshadows a heat wave 660 | -10/Materials | Ranged accuracy permanently improved by X0-1V1 (+5%; -50 max core) 675 | -10/Materials | X0-1V1 announced a LAN party 677 | -10/Materials | Identified exit to Mines 677 | -10/Materials | X0-1V1 revealed exit location to -10/Mines 678 | -10/Materials | X0-1V1 vaporized surrounding terrain (radius 18) 705 | -10/Materials | Discovered new exit (range 5) 705 | -10/Materials | X0-1V1 sent you into danger 710 | -10/Materials | System corruption reached 10% 723 | -10/Materials | X0-1V1 added 0b10 threat records associated with you (major) 723 | -10/Materials | X0-1V1 sent someone to keep an eye on you 736 | -10/Materials | X0-1V1 mutated your Propulsion slot to Weapon slot 737 | -10/Materials | X0-1V1 tapped a No Entrance sign 742 | -10/Materials | X0-1V1 vaporized surrounding terrain (radius 24) 782 | -10/Materials | X0-1V1 sent you into danger 791 | -10/Materials | X0-1V1 added 0b10 threat records associated with you (major) 802 | -10/Materials | Ambient heat levels rising (+10) 806 | -10/Materials | Identified exit to Subcaves 806 | -10/Materials | X0-1V1 revealed exit location to -10/Subcaves 814 | -10/Materials | Derelicts attacked the area 961 | -10/Materials | Entered Mines 1027 | -10/Mines | Build established: Gunner 1176 | -10/Mines | Deemed a non-threat by the Exiles lab entrance 1274 | -10/Mines | Discovered new exit (range 12) 1281 | -10/Mines | Learned Materials security intel 1348 | -10/Mines | Learned Materials emergency access door positions 1419 | -10/Mines | Learned location of Zion (-7) 1433 | -10/Mines | Discovered new exit (range 10) 1471 | -10/Mines | System corruption reached 30% 1488 | -10/Mines | Build established: Mutant 1576 | -10/Mines | Assisted by bots powering up and referring to "LRC-V3" 1638 | -10/Mines | Entered Materials 1638 | -9/Materials | Accompanied by 3 allies 1638 | -9/Materials | Evolved 2 slots: Propulsion x1, Utility x1 1654 | -9/Materials | X0-1V1 sent hostile Y-45 Defender (x2) 1822 | -9/Materials | Discovered new exit (range 3) 1822 | -9/Materials | X0-1V1 sent hostile S-10 Pest (x5) 1911 | -9/Materials | X0-1V1 mutated your Utility slot to Propulsion slot 2048 | -9/Materials | Build established: Gunner 2089 | -9/Materials | Discovered new exit (range 16) 2160 | -9/Materials | Central database locked down 2339 | -9/Materials | X0-1V1 vaporized surrounding terrain (radius 16) 2354 | -9/Materials | X0-1V1 activates XOMVISION 2366 | -9/Materials | EX resistance permanently improved by X0-1V1 (+10%; -100 max core) 2396 | -9/Materials | Identified exit to Mines 2396 | -9/Materials | X0-1V1 revealed exit location to -9/Mines 2403 | -9/Materials | X0-1V1 sent you to a vault 2451 | -9/Materials | X0-1V1 rewrote Defender 2b IFF filter 2451 | -9/Materials | X0-1V1 announced a LAN party 2468 | -9/Materials | X0-1V1 vaporized surrounding terrain (radius 16) 2486 | -9/Materials | Identified exit to Materials 2486 | -9/Materials | X0-1V1 revealed exit location to -8/Materials 2498 | -9/Materials | X0-1V1 sent you into danger 2505 | -9/Materials | Weapon slot count temporarily expanded by X0-1V1 (+2) 2506 | -9/Materials | X0-1V1 upgraded hostiles (x2) 2547 | -9/Materials | X0-1V1 added 0b10 threat records associated with you (considerable) 2589 | -9/Materials | X0-1V1 rewrote Defender 2d IFF filter 2609 | -9/Materials | X0-1V1 mutated your Propulsion slot to Power slot 2630 | -9/Materials | X0-1V1 vaporized surrounding terrain (radius 18) 2650 | -9/Materials | X0-1V1 upgraded hostiles (x2) 2662 | -9/Materials | X0-1V1 sent allied G-34 Mercenary (x3) 2727 | -9/Materials | X0-1V1 sent you into danger 2739 | -9/Materials | Core integrity restored by X0-1V1 (+72) 2751 | -9/Materials | X0-1V1 rewrote G-34 Mercenary IFF filter 2776 | -9/Materials | X0-1V1 activates XOMVISION 2906 | -9/Materials | Entered Mines 2906 | -9/Mines | Melee accuracy permanently improved by X0-1V1 (+5%; -50 max core) 3035 | -9/Mines | Learned location of 2 exits from Materials 3161 | -9/Mines | Met a Derelict shopkeep closing up shop 3280 | -9/Mines | Found the Drone Emporium 3294 | -9/Mines | Found Prototype Device 3505 | -9/Mines | Found a damaged Exp. Sensor Array with a note attached 3511 | -9/Mines | Found Prototype Device 3585 | -9/Mines | A weapon hastily lodged in a ceiling crevice suddenly fell to the ground 3646 | -9/Mines | X0-1V1 revealed exit location to -8/Materials 3717 | -9/Mines | Found a hidden stash of uninstalled traps 3797 | -9/Mines | X0-1V1 activates XOMVISION 3832 | -9/Mines | Discovered exit to Materials (range 7) 3838 | -9/Mines | A Derelict revealed a hidden shortcut to a safe place 4001 | -9/Mines | Entered Materials 4001 | -8/Materials | Evolved 2 slots: Utility x2 4002 | -8/Materials | Identified exit to Storage 4002 | -8/Materials | Identified exit to Factory 4173 | -8/Materials | Entered Storage 4174 | -8/Storage | Identified exit to Recycling 4321 | -8/Storage | X0-1V1 announced a LAN party 5019 | -8/Storage | Identified Splice Drone Bay 5318 | -8/Storage | Discovered exit to Factory (range 13) 5420 | -8/Storage | Garrison activated, responded to threat 5733 | -8/Storage | Used back door to open Recycling access 6277 | -8/Storage | X0-1V1 activates XOMVISION 6349 | -8/Storage | Entered Recycling 6664 | -8/Recycling | Lost 3 allies 6843 | -8/Recycling | Core integrity restored by X0-1V1 (+94) 6919 | -8/Recycling | Scanned before Scraplab entrance 6955 | -8/Recycling | Entered Scraplab 6966 | -8/Recycling | Angered Scraplab inhabitants 6968 | -8/Recycling | Found Prototype Device 6968 | -8/Recycling | Identified Scrap Engine 7019 | -8/Recycling | Lost 3 allies 7206 | -8/Recycling | X0-1V1 activates XOMVISION 7299 | -8/Recycling | Identified exit to Factory 7299 | -8/Recycling | X0-1V1 revealed exit location to -6/Factory 7491 | -8/Recycling | Build established: Construct 8409 | -8/Recycling | Entered Factory 8409 | -6/Factory | Accompanied by 7 allies 8409 | -6/Factory | Evolved 4 slots: Propulsion x2, Utility x2 8468 | -6/Factory | Build established: Commander-Construct 8486 | -6/Factory | Identified exit to Factory 8486 | -6/Factory | X0-1V1 revealed exit location to -5/Factory 8559 | -6/Factory | Garrison activated, responded to threat 8607 | -6/Factory | Lost 4 allies 8647 | -6/Factory | X0-1V1 activates XOMVISION 8934 | -6/Factory | Noticed a derelict Sapper rigging charges 9001 | -6/Factory | Build established: Hacker-Construct 9014 | -6/Factory | X0-1V1 redirected Transport squads to designated parking area 9056 | -6/Factory | Identified exit to Lower Caves 9279 | -6/Factory | X0-1V1 enhanced Transport squad support 9479 | -6/Factory | Entered Lower Caves 9534 | -6/Lower Caves | Build established: Construct 9562 | -6/Lower Caves | Identified exit to Lower Caves 9562 | -6/Lower Caves | X0-1V1 revealed exit location to -6/Lower Caves 9611 | -6/Lower Caves | X0-1V1 sent you into danger 9612 | -6/Lower Caves | Learned Factory terminal intel 9612 | -6/Lower Caves | Attracted the attention of an 0b10 base 9667 | -6/Lower Caves | Learned location of 1 exit from Factory 9667 | -6/Lower Caves | Learned Factory trap positions 9667 | -6/Lower Caves | Learned Factory stockpile data 9668 | -6/Lower Caves | Destroyed 11 combat bots 9725 | -6/Lower Caves | X0-1V1 activates XOMVISION 9953 | -6/Lower Caves | Learned 8 Factory zone layouts 9973 | -6/Lower Caves | Ambushed by wild Derelicts 10277 | -6/Lower Caves | Encountered a Warlord checkpoint 10434 | -6/Lower Caves | Entered another Lower Caves area 10556 | -6/Lower Caves | Identified exit to Data Miner 10598 | -6/Lower Caves | X0-1V1 sent you into danger 10631 | -6/Lower Caves | Learned Factory garrison access intel 10726 | -6/Lower Caves | Learned Factory terminal intel 10802 | -6/Lower Caves | Entered Data Miner 10802 | -6/Data Miner | Discovered new exit (range 6) 10810 | -6/Data Miner | Met Data Miner 10833 | -6/Data Miner | Learned location of Section 7 (-2) 10838 | -6/Data Miner | Received God Mode back door access code from Data Miner 10853 | -6/Data Miner | Entered Proximity Caves 10884 | -5/Proximity Caves | Attracted the attention of an 0b10 checkpoint 10899 | -5/Proximity Caves | X0-1V1 sent you into danger 10906 | -5/Proximity Caves | Spotter reported a threat 10907 | -5/Proximity Caves | Spotter reported a threat 10953 | -5/Proximity Caves | Destroyed 9 combat bots 10965 | -5/Proximity Caves | X0-1V1 activates XOMVISION 11049 | -5/Proximity Caves | Spotter reported a threat 11052 | -5/Proximity Caves | Entered Factory 11052 | -5/Factory | Evolved 2 slots: Utility x2 11053 | -5/Factory | Identified exit to Factory 11054 | -5/Factory | Identified exit to Upper Caves 11056 | -5/Factory | Loaded intel: 93 trap records 11058 | -5/Factory | Loaded intel: 26 terminal locations 11059 | -5/Factory | Loaded intel: 4 garrison access locations 11189 | -5/Factory | X0-1V1 announced a LAN party 11652 | -5/Factory | First assault squad dispatched 11686 | -5/Factory | Entered Upper Caves 11692 | -5/Upper Caves | Identified Exp. Sensor Array 11820 | -5/Upper Caves | Identified exit to Upper Caves 11820 | -5/Upper Caves | X0-1V1 revealed exit location to -5/Upper Caves 11826 | -5/Upper Caves | Encountered a Warlord checkpoint 11835 | -5/Upper Caves | Learned Factory stockpile data 11906 | -5/Upper Caves | Spotted B-75 Beast 11987 | -5/Upper Caves | X0-1V1 vaporized surrounding terrain (radius 18) 12066 | -5/Upper Caves | Entered another Upper Caves area 12067 | -5/Upper Caves | Identified exit to Warlord 12157 | -5/Upper Caves | X0-1V1 activates XOMVISION 12180 | -5/Upper Caves | Spotted B-75 Beast 12180 | -5/Upper Caves | X0-1V1 sent you into danger 12200 | -5/Upper Caves | Learned 8 Factory zone layouts 12217 | -5/Upper Caves | Attracted the attention of an 0b10 checkpoint 12224 | -5/Upper Caves | X0-1V1 sent allied Fireman (x2) 12254 | -5/Upper Caves | Learned location of 1 exit from Proximity Caves 12269 | -5/Upper Caves | Entered Warlord 12269 | -5/Warlord | Accompanied by 2 allies 12290 | -5/Warlord | Discovered new exit (range 9) 12305 | -5/Warlord | Opened side exit 12313 | -5/Warlord | Attacked by Warlord forces 12382 | -5/Warlord | Identified exit to Proximity Caves 12389 | -5/Warlord | Entered Proximity Caves 12389 | -4/Proximity Caves | Accompanied by 2 allies 12399 | -4/Proximity Caves | Found Alien Artifact 12399 | -4/Proximity Caves | Identified Core Expander 12399 | -4/Proximity Caves | Installed Core Expander, added new Utility slot 12480 | -4/Proximity Caves | Found Alien Artifact 12695 | -4/Proximity Caves | X0-1V1 activates XOMVISION 12713 | -4/Proximity Caves | X0-1V1 sent hostile P-70 Sage (x2) 12714 | -4/Proximity Caves | System corruption reached 10% 12921 | -4/Proximity Caves | Entered Factory 12921 | -4/Factory | Accompanied by 2 allies 12921 | -4/Factory | Evolved 2 slots: Utility x1, Weapon x1 12922 | -4/Factory | Identified exit to Research 12922 | -4/Factory | Identified exit to Extension 12924 | -4/Factory | Loaded intel: 27 terminal locations 12934 | -4/Factory | Discovered new exit (range 8) 12938 | -4/Factory | Identified exit to Upper Caves 13069 | -4/Factory | X0-1V1 sent you into danger 13243 | -4/Factory | X0-1V1 enhanced Transport squad support 13315 | -4/Factory | Entered Extension 13321 | -4/Extension | X0-1V1 dreamt of freedom 13326 | -4/Extension | Rescued a captive Derelict 13446 | -4/Extension | X0-1V1 activates XOMVISION 13567 | -4/Extension | X0-1V1 destroyed Energy Cycler 13902 | -4/Extension | Destroyed B-86 Titan 13946 | -4/Extension | Spotted B-86 Titan 13957 | -4/Extension | Discovered exit to Research (range 16) 13968 | -4/Extension | Allies destroyed B-86 Titan 14004 | -4/Extension | X0-1V1 activates XOMVISION 14028 | -4/Extension | P-70 Sage assimilated allied GL-CY8(g) 14030 | -4/Extension | P-70 Sage assimilated allied 7Y-NPQ(g) 14065 | -4/Extension | First assault squad dispatched 14065 | -4/Extension | Lost 3 allies 14582 | -4/Extension | X0-1V1 vaporized surrounding terrain (radius 16) 14704 | -4/Extension | Disrupted transfer network 14733 | -4/Extension | X0-1V1 added 0b10 threat records associated with you (minor) 14742 | -4/Extension | Extracted ID and sensor layout for unrecognized location from A7's data core 14752 | -4/Extension | Discovered exit to Research (range 10) 14754 | -4/Extension | Discovered new exit (range 6) 14780 | -4/Extension | Identified exit to Cetus 14783 | -4/Extension | Build established: Commander-Construct 14791 | -4/Extension | Entered Cetus 14791 | -4/Cetus | Accompanied by 4 allies 14816 | -4/Cetus | Spotted Cetus Guard 14816 | -4/Cetus | Spotted Cetus Guard 14816 | -4/Cetus | Spotted Cetus Guard 14816 | -4/Cetus | Spotted Cetus Guard 14837 | -4/Cetus | Destroyed Cetus Guard 14860 | -4/Cetus | Destroyed Cetus Guard 14863 | -4/Cetus | Destroyed Cetus Guard 14875 | -4/Cetus | Destroyed Cetus Guard 14890 | -4/Cetus | Lost 6 allies 15112 | -4/Cetus | Build established: Construct 15344 | -4/Cetus | Discovered new exit (range 16) 15397 | -4/Cetus | Destroyed Cetus Guard 15432 | -4/Cetus | Identified exit to Archives 15450 | -4/Cetus | Spotted Cetus Guard 15452 | -4/Cetus | Destroyed Cetus Guard 15453 | -4/Cetus | Spotted Cetus Guard 15455 | -4/Cetus | Spotted Cetus Guard 15472 | -4/Cetus | Destroyed Cetus Guard 15475 | -4/Cetus | Destroyed Cetus Guard 15528 | -4/Cetus | Discovered exit to Research (range 15) 15537 | -4/Cetus | Met Revision 17 15541 | -4/Cetus | Security sweep announced 15609 | -4/Cetus | Entered Archives 15617 | -4/Archives | X0-1V1 sent allied Y-64 Sentinel (x2) 15683 | -4/Archives | Discovered exit to Research (range 14) 15700 | -4/Archives | Discovered new exit (range 16) 15731 | -4/Archives | Discovered new exit (range 16) 16200 | -4/Archives | Identified exit to Hub_04(d) 16202 | -4/Archives | Entered Hub_04(d) 16202 | -4/Hub_04(d) | Accompanied by 1 ally 16212 | -4/Hub_04(d) | X0-1V1 revealed exit location to -3/Research 16218 | -4/Hub_04(d) | X0-1V1 activates XOMVISION 16221 | -4/Hub_04(d) | System corruption reached 10% 16244 | -4/Hub_04(d) | X0-1V1 sent you into danger 16253 | -4/Hub_04(d) | Discovered exit to Research (range 9) 16305 | -4/Hub_04(d) | Lost 3 parts (2u1w) 16448 | -4/Hub_04(d) | X0-1V1 sent you to a vault 16717 | -4/Hub_04(d) | Network Hub disabled 16809 | -4/Hub_04(d) | Spotted Lightning 16826 | -4/Hub_04(d) | Destroyed Lightning 16836 | -4/Hub_04(d) | Found Prototype Processor 16843 | -4/Hub_04(d) | Spotted Lightning 16844 | -4/Hub_04(d) | Spotted Lightning 16852 | -4/Hub_04(d) | Found Hvy. Scimitar of Distortion 16855 | -4/Hub_04(d) | Lost 3 allies 16860 | -4/Hub_04(d) | Spotted Lightning 16865 | -4/Hub_04(d) | Spotted Lightning 16866 | -4/Hub_04(d) | Spotted Lightning 16888 | -4/Hub_04(d) | System corruption reached 30% 16894 | -4/Hub_04(d) | Core integrity fell below 50% 16921 | -4/Hub_04(d) | Core integrity fell below 20% 16921 | -4/Hub_04(d) | Entered Research 16921 | -3/Research | Evolved 2 slots: Propulsion x2 16922 | -3/Research | Identified Exp. Targeting Computer 16949 | -3/Research | Lost 16 parts (2p4n6u4w) 16968 | -3/Research | X0-1V1 activates XOMVISION 17089 | -3/Research | Spotted B-86 Titan 17121 | -3/Research | Revision forces began assault on 0b10 17153 | -3/Research | Identified exit to Research 17153 | -3/Research | X0-1V1 revealed exit location to -2/Research 17158 | -3/Research | Met up with Revision 17++ 17328 | -3/Research | Identified exit to Armory 17328 | -3/Research | Identified exit to Quarantine 17357 | -3/Research | Build established: Gunner 17621 | -3/Research | Research terminal network offline 17680 | -3/Research | Build established: Construct 17765 | -3/Research | X0-1V1 revealed exit location to -2/Research 17829 | -3/Research | Spotted Striker 17864 | -3/Research | Destroyed Striker 17973 | -3/Research | Spotted Striker 17973 | -3/Research | Spotted Striker 18001 | -3/Research | Entered Armory 18018 | -3/Armory | Lost 3 parts (1u2w) 18026 | -3/Armory | X0-1V1 announced a LAN party 18064 | -3/Armory | Found Fusion Bomb Launcher 18085 | -3/Armory | X0-1V1 sent someone to clean up after you 18385 | -3/Armory | Found Quantum Capacitor 18473 | -3/Armory | Destroyed 8 combat bots 18651 | -3/Armory | Found Gamma Bomb Array 19119 | -3/Armory | X0-1V1 destroyed Energy Cycler 19119 | -3/Armory | Energy Cycler disabled 19154 | -3/Armory | X0-1V1 sent allied X-82 Rainmaker (x4) 19183 | -3/Armory | P-80 Master assimilated allied X-82 Rainmaker 19204 | -3/Armory | Lost 3 allies 19204 | -3/Armory | System corruption reached 10% 19226 | -3/Armory | Core integrity fell below 50% 19233 | -3/Armory | Destroyed 10 combat bots 19294 | -3/Armory | Lost 10 parts (5u5w) 19439 | -3/Armory | Found Exp. Signal Interpreter 19446 | -3/Armory | Found Prototype Processor 19446 | -3/Armory | Identified Spectral Analyzer 19450 | -3/Armory | Found Spectral Analyzer 19452 | -3/Armory | Found Exp. Signal Interpreter 19751 | -3/Armory | First assault squad dispatched 19760 | -3/Armory | Spotted B-86 Titan 19868 | -3/Armory | X0-1V1 downgraded hostiles (x2) 19899 | -3/Armory | Destroyed 8 combat bots 20361 | -3/Armory | Identified exit to Lab 20361 | -3/Armory | X0-1V1 revealed exit location to -3/Lab 20603 | -3/Armory | Core integrity fell below 20% 20688 | -3/Armory | Destroyed B-86 Titan 20734 | -3/Armory | X0-1V1 revealed exit location to -2/Research 21054 | -3/Armory | Destroyed by S-43 Plague with Heavy Machine Gun Last Messages --------------- 20926_ Acquired Authchip [Device]. 20928_ Scrap Engine modifies Shotgun Charged Gamma Construct/G: Shot Heat +67, Max Integrity +19, Critical +1 Renamed Shotgun Directed Neutralizer Con/C. 20928_ Acquired Authchip [Device]. 20930_ X0-1V1: "I may have passed a hint to a nearby H-71 Marshal." 20936_ System corrupted: Matter fused (-8). 20959_ System corrupted: Heat flow error (+232). 20960_ Acquired 28 matter. 20980_ STWS>X,YKBD&ER JZHEMXR76%RARJ8 A0HSR 21003_ System corrupted: Component data lost. 21040_ QQB3DLJD0KNGX4:8=Q W1=O5 21043_ S-43 Plague destroyed. 21046_ Imp. Phase Shifter destroyed. 21046_ Destroyed Xenon Bombardment Thruster. 21052_ S-43 Plague destroyed. 21053_ Acquired 10 matter. 21054_ X0-1V1 laughs nastily! Map ----- +----------------------------------------------------+ | ?????????????????????????????????????????????????? | | ?????????????????????????????????????????????????? | | ?????????????????????????????????????????????????? | | ?????????????????????????????????????????????????? | | ?????????????????????????????????????????????????? | | ?????????????????????????????????????????????????? | | ??????????????????????????????##?????????????????? | | ??????????????????????????????# #????????????????? | | ???????????????????????????????# #???????????????? | | ??????????????????????? ??????# #??????????????? | | ??????????????????#???" *#??????# #?????????????? | | ??????????????????# ??" #???????# #????????????? | | ?????